fUST/lending_fUST_20250814
["ID","MTS","AMOUNT","RATE_DAILY","PERIOD"]
[379137303,1755155501228,-463.24873396,0.00018183,2]
[379137304,1755155501238,-460.0,0.00018183,2]
[379137305,1755155501248,-680.67,0.00018183,2]
[379137306,1755155501257,-460.0,0.00018183,2]
[379137307,1755155501268,-441.16628443,0.00018183,2]
[379137308,1755155501278,-460.0,0.00018183,2]
[379137309,1755155501287,-460.0,0.00018183,2]
[379137310,1755155501297,-460.0,0.00018183,2]
[379137311,1755155501307,-460.0,0.00018183,2]
[379137312,1755155501316,-460.0,0.00018183,2]
[379137313,1755155501325,-460.0,0.00018183,2]
[379137314,1755155501334,-460.0,0.00018183,2]
[379137315,1755155501344,-460.0,0.00018183,2]
[379137316,1755155501353,-460.0,0.00018183,2]
[379137317,1755155501363,-460.0,0.00018183,2]
[379137318,1755155501372,-539.04,0.00018183,2]
[379137319,1755155501382,-531.72,0.00018183,2]
[379137320,1755155501392,-460.0,0.00018183,2]
[379137321,1755155501401,-160.12699139,0.00018183,2]
[379137322,1755155501411,-460.0,0.00018185,2]
[379137323,1755155501421,-460.0,0.00018185,2]
[379137324,1755155501431,-552.41,0.00018185,2]
[379137325,1755155501443,-460.0,0.00018185,2]
[379137326,1755155501453,-460.0,0.00018185,2]
[379137327,1755155501463,-488.17525389,0.00018185,2]
[379137328,1755155501474,-460.0,0.00018185,2]
[379137329,1755155501484,-467.46366629,0.00018185,2]
[379137330,1755155501493,-639.23,0.00018185,2]
[379137331,1755155501503,-460.0,0.00018185,2]
[379137332,1755155501513,-1070.12,0.00018185,2]
[379137333,1755155501522,-460.0,0.00018185,2]
[379137334,1755155501533,-460.0,0.00018185,2]
[379137335,1755155501542,-463.91606532,0.00018185,2]
[379137336,1755155501551,-460.0,0.00018185,2]
[379137337,1755155501560,-460.0,0.00018185,2]
[379137338,1755155501570,-460.0,0.00018185,2]
[379137339,1755155501579,-461.1873252,0.00018185,2]
[379137340,1755155501589,-460.0,0.00018185,2]
[379137341,1755155501598,-460.0,0.00018185,2]
[379137342,1755155501607,-460.0,0.00018185,2]
[379137343,1755155501616,-460.0,0.00018185,2]
[379137344,1755155501625,-460.0,0.00018185,2]
[379137345,1755155501634,-461.19694275,0.00018185,2]
[379137346,1755155501643,-460.0,0.00018185,2]
[379137347,1755155501652,-460.0,0.00018185,2]
[379137348,1755155501661,-460.0,0.00018185,2]
[379137349,1755155501671,-460.0,0.00018185,2]
[379137350,1755155501680,-460.0,0.00018185,2]
[379137351,1755155501689,-460.0,0.00018185,2]
[379137352,1755155501704,-499.0,0.00018213,2]
[379137353,1755155501713,-499.0,0.00018364,2]
[379137354,1755155501722,-160.0,0.00018409,2]
[379137355,1755155501731,-843.37884167,0.00018409,2]
[379137356,1755155501740,-160.0,0.00018409,2]
[379137357,1755155501749,-232.05637125,0.00018409,2]
[379137358,1755155501758,-417.15472785,0.00018409,2]
[379137359,1755155501767,-160.0,0.00018409,2]
[379137360,1755155501776,-215.59581046,0.00018414,2]
[379137361,1755155501785,-537.3,0.00018448,2]
[379137362,1755155501794,-962.42,0.00018448,2]
[379137363,1755155501803,-3717.24,0.00018448,2]
[379137364,1755155501812,-1847.26,0.00018448,2]
[379137365,1755155501821,-460.0,0.00018448,2]
[379137366,1755155501831,-3165.01,0.00018448,2]
[379137367,1755155501840,-658.62,0.00018448,2]
[379137368,1755155501850,-460.0,0.00018448,2]
[379137369,1755155501859,-901.56,0.00018448,2]
[379137370,1755155501868,-460.0,0.00018448,2]
[379137371,1755155501878,-2353.97,0.00018448,2]
[379137372,1755155501887,-698.69,0.00018448,2]
[379137373,1755155501898,-546.79,0.00018448,2]
[379137374,1755155501907,-473.16,0.00018448,2]
[379137375,1755155501916,-518.07,0.00018448,2]
[379137376,1755155501926,-260.60155112,0.00018448,2]
[379137377,1755155501935,-1020.86,0.00018448,2]
[379137378,1755155501947,-2691.97,0.00018448,2]
[379137379,1755155501957,-650.89,0.00018448,2]
[379137380,1755155501966,-460.0,0.00018448,2]
[379137381,1755155501975,-460.0,0.00018448,2]
[379137382,1755155501984,-460.0,0.00018448,2]
[379137383,1755155501993,-753.88,0.00018448,2]
[379137384,1755155502002,-298.02013117,0.00018448,2]
[379137385,1755155502012,-1246.85,0.00018448,2]
[379137386,1755155502021,-624.47,0.00018448,2]
[379137387,1755155502030,-460.0,0.00018448,2]
[379137388,1755155502039,-460.0,0.00018448,2]
[379137389,1755155502048,-460.0,0.00018448,2]
[379137390,1755155502057,-4523.35,0.00018448,2]
[379137391,1755155502067,-684.24,0.00018448,2]
[379137392,1755155502076,-2908.35,0.00018448,2]
[379137393,1755155502085,-460.0,0.00018448,2]
[379137394,1755155502095,-220.67147934,0.00018448,2]
[379137395,1755155502104,-935.09,0.00018448,2]
[379137396,1755155502114,-460.0,0.00018448,2]
[379137397,1755155502123,-460.0,0.00018448,2]
[379137398,1755155502133,-460.0,0.00018448,2]
[379137399,1755155502142,-527.87,0.00018448,2]
[379137400,1755155502151,-1312.88,0.00018448,2]
[379137401,1755155502160,-460.0,0.00018449,2]
[379137402,1755155502169,-460.0,0.00018449,2]
[379137403,1755155502179,-1589.06,0.00018449,2]
[379137404,1755155502189,-462.35472963,0.00018449,2]
[379137405,1755155502200,-554.53,0.00018449,2]
[379137406,1755155502209,-460.0,0.00018449,2]
[379137407,1755155502218,-460.0,0.00018449,2]
[379137408,1755155502229,-460.0,0.00018449,2]
[379137409,1755155502238,-485.55836064,0.00018449,2]
[379137410,1755155502248,-471.10767372,0.00018449,2]
[379137411,1755155502257,-460.0,0.00018449,2]
[379137412,1755155502268,-460.0,0.00018449,2]
[379137413,1755155502278,-671.78,0.00018449,2]
[379137414,1755155502287,-460.0,0.00018449,2]
[379137415,1755155502297,-460.0,0.00018449,2]
[379137416,1755155502306,-460.0,0.00018449,2]
[379137417,1755155502315,-868.63,0.00018449,2]
[379137418,1755155502324,-1158.5,0.00018449,2]
[379137419,1755155502333,-460.0,0.00018449,2]
[379137420,1755155502342,-857.42,0.00018449,2]
[379137421,1755155502352,-460.0,0.00018449,2]
[379137422,1755155502361,-460.0,0.00018449,2]
[379137423,1755155502371,-1894.56,0.00018449,2]
[379137424,1755155502380,-1346.19,0.00018449,2]
[379137425,1755155502389,-1301.0,0.00018449,2]
[379137426,1755155502399,-460.0,0.00018449,2]
[379137427,1755155502408,-460.0,0.00018449,2]
[379137428,1755155502417,-460.0,0.00018449,2]
[379137429,1755155502427,-1394.89,0.00018449,2]
[379137430,1755155502436,-981.34,0.00018449,2]
[379137431,1755155502447,-460.0,0.00018449,2]
[379137432,1755155502457,-460.0,0.00018449,2]
[379137433,1755155502466,-460.0,0.00018449,2]
[379137434,1755155502477,-1120.15,0.00018449,2]
[379137435,1755155502486,-460.0,0.00018449,2]
[379137436,1755155502496,-460.0,0.00018449,2]
[379137437,1755155502505,-792.71,0.00018449,2]
[379137438,1755155502515,-460.0,0.0001845,2]
[379137439,1755155502524,-337.52455103,0.0001845,2]
[379137440,1755155502534,-351.47731221,0.0001845,2]
[379137441,1755155502543,-460.0,0.0001845,2]
[379137442,1755155502553,-365.32276259,0.0001845,2]
[379137443,1755155502563,-460.0,0.0001845,2]
[379137444,1755155502572,-305.65386323,0.0001845,2]
[379137445,1755155502581,-460.0,0.0001845,2]
[379137446,1755155502591,-460.0,0.0001845,2]
[379137447,1755155502601,-460.0,0.0001845,2]
[379137448,1755155502611,-460.0,0.0001845,2]
[379137449,1755155502621,-460.0,0.0001845,2]
[379137450,1755155502630,-460.0,0.0001845,2]
[379137451,1755155502639,-460.0,0.0001845,2]
[379137452,1755155502649,-460.0,0.0001845,2]
[379137453,1755155502659,-460.0,0.0001845,2]
[379137454,1755155502668,-460.0,0.0001845,2]
[379137455,1755155502678,-460.0,0.0001845,2]
[379137456,1755155502687,-460.0,0.0001845,2]
[379137457,1755155502698,-476.04127908,0.0001845,2]
[379137458,1755155502707,-460.0,0.0001845,2]
[379137459,1755155502717,-460.0,0.0001845,2]
[379137460,1755155502727,-383.66325514,0.0001845,2]
[379137461,1755155502736,-478.89,0.0001845,2]
[379137462,1755155502745,-460.0,0.0001845,2]
[379137463,1755155502755,-494.47,0.0001845,2]
[379137464,1755155502764,-1250.11,0.0001845,2]
[379137465,1755155502774,-460.0,0.0001845,2]
[379137466,1755155502783,-523.5,0.0001845,2]
[379137467,1755155502793,-460.0,0.0001845,2]
[379137468,1755155502803,-460.0,0.0001845,2]
[379137469,1755155502812,-560.45,0.0001845,2]
[379137470,1755155502821,-2260.42,0.0001845,2]
[379137471,1755155502831,-460.0,0.0001845,2]
[379137472,1755155502842,-1073.34,0.0001845,2]
[379137473,1755155502851,-533.97,0.0001845,2]
[379137474,1755155502861,-460.0,0.0001845,2]
[379137475,1755155502870,-460.0,0.0001845,2]
[379137476,1755155502880,-506.13813166,0.0001845,2]
[379137477,1755155502889,-460.0,0.0001845,2]
[379137478,1755155502898,-460.0,0.0001845,2]
[379137479,1755155502908,-460.0,0.0001845,2]
[379137480,1755155502917,-460.0,0.0001845,2]
[379137481,1755155502927,-462.21,0.0001845,2]
[379137482,1755155502936,-460.0,0.0001845,2]
[379137483,1755155502947,-794.93,0.0001845,2]
[379137484,1755155502957,-460.0,0.0001845,2]
[379137485,1755155502967,-463.15370191,0.0001845,2]
[379137486,1755155502976,-460.0,0.0001845,2]
[379137487,1755155502985,-460.0,0.0001845,2]
[379137488,1755155502996,-460.0,0.0001845,2]
[379137489,1755155503005,-620.72,0.0001845,2]
[379137490,1755155503014,-1090.39,0.0001845,2]
[379137491,1755155503024,-460.0,0.0001845,2]
[379137492,1755155503033,-578.8,0.0001845,2]
[379137493,1755155503043,-1078.96,0.0001845,2]
[379137494,1755155503052,-460.0,0.0001845,2]
[379137495,1755155503061,-754.77,0.0001845,2]
[379137496,1755155503071,-460.0,0.0001845,2]
[379137497,1755155503080,-1515.38,0.0001845,2]
[379137498,1755155503089,-460.0,0.0001845,2]
[379137499,1755155503099,-662.12,0.0001845,2]
[379137500,1755155503109,-928.86,0.0001845,2]
[379137501,1755155503118,-460.0,0.0001845,2]
[379137502,1755155503128,-460.0,0.0001845,2]
[379137503,1755155503138,-898.83,0.0001845,2]
[379137504,1755155503147,-460.0,0.0001845,2]
[379137505,1755155503157,-460.0,0.0001845,2]
[379137506,1755155503167,-460.0,0.0001845,2]
[379137507,1755155503176,-470.99488762,0.0001845,2]
[379137508,1755155503188,-460.0,0.0001845,2]
[379137509,1755155503202,-575.97535117,0.0001845,2]
[379137510,1755155503211,-460.0,0.0001845,2]
[379137511,1755155503221,-460.0,0.0001845,2]
[379137512,1755155503231,-460.0,0.0001845,2]
[379137513,1755155503240,-460.0,0.0001845,2]
[379137514,1755155503250,-826.18,0.0001845,2]
[379137515,1755155503259,-583.5,0.0001845,2]
[379137516,1755155503270,-460.0,0.0001845,2]
[379137517,1755155503280,-460.0,0.0001845,2]
[379137518,1755155503290,-556.98,0.0001845,2]
[379137519,1755155503299,-460.0,0.0001845,2]
[379137520,1755155503308,-460.0,0.0001845,2]
[379137521,1755155503318,-460.0,0.0001845,2]
[379137522,1755155503327,-460.0,0.0001845,2]
[379137523,1755155503338,-460.0,0.0001845,2]
[379137524,1755155503348,-460.0,0.0001845,2]
[379137525,1755155503357,-460.0,0.0001845,2]
[379137526,1755155503367,-875.16,0.0001845,2]
[379137527,1755155503376,-460.0,0.0001845,2]
[379137528,1755155503386,-460.0,0.0001845,2]
[379137529,1755155503395,-1311.61,0.0001845,2]
[379137530,1755155503405,-461.66,0.0001845,2]
[379137531,1755155503415,-460.0,0.0001845,2]
[379137532,1755155503425,-460.0,0.0001845,2]
[379137533,1755155503435,-460.0,0.0001845,2]
[379137534,1755155503448,-460.0,0.0001845,2]
[379137535,1755155503458,-460.0,0.0001845,2]
[379137536,1755155503467,-1278.82,0.0001845,2]
[379137537,1755155503477,-460.0,0.0001845,2]
[379137538,1755155503486,-1576.09,0.0001845,2]
[379137539,1755155503496,-1114.02,0.0001845,2]
[379137540,1755155503506,-460.0,0.0001845,2]
[379137542,1755155503515,-460.0,0.0001845,2]
[379137543,1755155503525,-460.0,0.0001845,2]
[379137544,1755155503535,-460.0,0.0001845,2]
[379137545,1755155503544,-549.88,0.0001845,2]
[379137546,1755155503554,-460.0,0.0001845,2]
[379137547,1755155503718,-996.06,0.0001845,2]
[379137548,1755155503727,-869.96,0.0001845,2]
[379137549,1755155503736,-460.0,0.00018451,2]
[379137550,1755155503747,-460.0,0.00018451,2]
[379137551,1755155503756,-1172.05,0.00018451,2]
[379137552,1755155503766,-1089.76,0.00018451,2]
[379137553,1755155503775,-930.96,0.00018451,2]
[379137554,1755155503785,-460.0,0.00018451,2]
[379137555,1755155503795,-3351.93,0.00018451,2]
[379137556,1755155503804,-2473.07,0.00018451,2]
[379137557,1755155503813,-632.41,0.00018451,2]
[379137558,1755155503823,-460.0,0.00018451,2]
[379137559,1755155503833,-855.92,0.00018451,2]
[379137560,1755155503842,-3530.91,0.00018451,2]
[379137561,1755155503851,-460.0,0.00018451,2]
[379137562,1755155503861,-460.0,0.00018452,2]
[379137563,1755155503871,-460.0,0.00018452,2]
[379137564,1755155503881,-492.38,0.00018452,2]
[379137565,1755155503891,-460.0,0.00018452,2]
[379137566,1755155503900,-460.0,0.00018452,2]
[379137567,1755155503909,-605.01,0.00018452,2]
[379137568,1755155503919,-460.0,0.00018452,2]
[379137569,1755155503928,-460.0,0.00018452,2]
[379137570,1755155503938,-839.93,0.00018452,2]
[379137571,1755155503949,-460.0,0.00018452,2]
[379137572,1755155503959,-921.14,0.00018452,2]
[379137573,1755155503968,-460.0,0.00018452,2]
[379137574,1755155503977,-460.0,0.00018452,2]
[379137575,1755155503987,-460.0,0.00018452,2]
[379137576,1755155503996,-460.0,0.00018452,2]
[379137577,1755155504006,-460.0,0.00018452,2]
[379137578,1755155504016,-460.0,0.00018452,2]
[379137579,1755155504025,-460.0,0.00018452,2]
[379137580,1755155504035,-460.0,0.00018452,2]
[379137581,1755155504045,-460.0,0.00018452,2]
[379137582,1755155504055,-498.38,0.00018452,2]
[379137583,1755155504065,-460.0,0.00018452,2]
[379137584,1755155504075,-211.63057154,0.00018452,2]
[379137585,1755155504085,-460.0,0.00018452,2]
[379137586,1755155504095,-460.0,0.00018452,2]
[379137587,1755155504105,-460.0,0.00018452,2]
[379137588,1755155504115,-460.0,0.00018452,2]
[379137589,1755155504124,-460.0,0.00018452,2]
[379137590,1755155504134,-275.88,0.00018452,2]
[379137591,1755155504143,-460.0,0.00018452,2]
[379137592,1755155504153,-460.0,0.00018452,2]
[379137593,1755155504163,-460.0,0.00018452,2]
[379137594,1755155504172,-460.0,0.00018452,2]
[379137595,1755155504182,-460.0,0.00018452,2]
[379137596,1755155504195,-465.0376344,0.00018452,2]
[379137597,1755155504205,-465.65030632,0.00018452,2]
[379137598,1755155504215,-460.0,0.00018452,2]
[379137599,1755155504224,-460.0,0.00018452,2]
[379137600,1755155504235,-460.0,0.00018452,2]
[379137601,1755155504244,-460.0,0.00018452,2]
[379137602,1755155504254,-460.0,0.00018452,2]
[379137603,1755155504264,-460.0,0.00018452,2]
[379137604,1755155504274,-510.59309759,0.00018452,2]
[379137605,1755155504284,-460.0,0.00018452,2]
[379137606,1755155504293,-460.0,0.00018452,2]
[379137607,1755155504303,-549.48,0.00018452,2]
[379137608,1755155504313,-460.0,0.00018452,2]
[379137609,1755155504323,-586.46,0.00018452,2]
[379137610,1755155504333,-489.26,0.00018452,2]
[379137611,1755155504343,-460.0,0.00018452,2]
[379137612,1755155504352,-184.55461044,0.00018452,2]
[379137613,1755155504363,-460.0,0.00018452,2]
[379137614,1755155504372,-460.0,0.00018452,2]
[379137615,1755155504382,-460.0,0.00018452,2]
[379137616,1755155504393,-460.0,0.00018452,2]
[379137617,1755155504402,-460.0,0.00018452,2]
[379137618,1755155504412,-460.0,0.00018452,2]
[379137619,1755155504422,-980.35,0.00018452,2]
[379137620,1755155504432,-460.0,0.00018452,2]
[379137621,1755155504442,-460.0,0.00018452,2]
[379137622,1755155504452,-460.0,0.00018452,2]
[379137623,1755155504462,-210.02076478,0.00018452,2]
[379137624,1755155504471,-460.0,0.00018452,2]
[379137625,1755155504480,-460.0,0.00018452,2]
[379137626,1755155504489,-465.38648774,0.00018452,2]
[379137627,1755155504499,-460.0,0.00018452,2]
[379137628,1755155504508,-538.88,0.00018452,2]
[379137629,1755155504518,-460.0,0.00018452,2]
[379137630,1755155504528,-460.0,0.00018452,2]
[379137631,1755155504537,-460.0,0.00018452,2]
[379137632,1755155504547,-460.0,0.00018452,2]
[379137633,1755155504556,-460.0,0.00018452,2]
[379137634,1755155504565,-460.0,0.00018452,2]
[379137635,1755155504575,-460.0,0.00018452,2]
[379137636,1755155504584,-460.0,0.00018452,2]
[379137637,1755155504593,-460.0,0.00018452,2]
[379137638,1755155504602,-460.0,0.00018452,2]
[379137639,1755155504611,-460.0,0.00018452,2]
[379137640,1755155504621,-460.0,0.00018452,2]
[379137641,1755155504630,-542.09,0.00018452,2]
[379137642,1755155504639,-460.0,0.00018452,2]
[379137643,1755155504650,-250.59743655,0.00018452,2]
[379137644,1755155504660,-899.7,0.00018452,2]
[379137645,1755155504669,-1198.26,0.00018455,2]
[379137646,1755155504678,-648.44,0.00018455,2]
[379137647,1755155504687,-13058.9,0.00018455,2]
[379137648,1755155504697,-13877.95,0.00018455,2]
[379137649,1755155504706,-1352.01,0.00018455,2]
[379137650,1755155504715,-3386.18,0.00018455,2]
[379137651,1755155504724,-1449.54,0.00018455,2]
[379137652,1755155504733,-9771.2,0.00018455,2]
[379137653,1755155504742,-1585.28,0.00018455,2]
[379137654,1755155504752,-151.0,0.00018456,2]
[379137655,1755155504761,-151.0,0.00018456,2]
[379137656,1755155504770,-151.0,0.00018457,2]
[379137657,1755155504779,-151.0,0.00018457,2]
[379137658,1755155504788,-151.0,0.00018457,2]
[379137659,1755155504798,-460.0,0.00018457,2]
[379137660,1755155504807,-460.0,0.00018457,2]
[379137661,1755155504816,-654.67,0.00018457,2]
[379137662,1755155504825,-460.0,0.00018457,2]
[379137663,1755155504835,-460.0,0.00018457,2]
[379137664,1755155504844,-460.0,0.00018457,2]
[379137665,1755155504853,-473.47,0.00018457,2]
[379137666,1755155504862,-460.0,0.00018457,2]
[379137667,1755155504872,-460.0,0.00018457,2]
[379137668,1755155504881,-830.36,0.00018457,2]
[379137669,1755155504890,-637.98,0.00018457,2]
[379137670,1755155504900,-460.0,0.00018457,2]
[379137671,1755155504909,-460.0,0.00018457,2]
[379137672,1755155504918,-460.0,0.00018457,2]
[379137673,1755155504928,-628.04,0.00018457,2]
[379137674,1755155504937,-460.0,0.00018457,2]
[379137675,1755155504948,-680.67,0.00018457,2]
[379137676,1755155504957,-460.0,0.00018457,2]
[379137677,1755155504967,-460.0,0.00018457,2]
[379137678,1755155504976,-460.0,0.00018457,2]
[379137679,1755155504985,-460.0,0.00018457,2]
[379137680,1755155504995,-460.0,0.00018457,2]
[379137681,1755155505004,-460.0,0.00018457,2]
[379137682,1755155505013,-539.04,0.00018457,2]
[379137683,1755155505023,-531.72,0.00018457,2]
[379137684,1755155505031,-219.902138,0.00018457,2]
[379137685,1755155505040,-460.0,0.00018457,2]
[379137686,1755155505050,-151.0,0.00018458,2]
[379137687,1755155505060,-416.81148,0.00018458,2]
[379137688,1755155505069,-416.81148,0.00018458,2]
[379137689,1755155505078,-151.836274,0.00018458,2]
[379137690,1755155505088,-151.0,0.00018459,2]
[379137691,1755155505098,-151.0,0.00018459,2]
[379137692,1755155505107,-151.0,0.00018459,2]
[379137693,1755155505117,-416.81148,0.00018459,2]
[379137694,1755155505126,-416.81148,0.00018459,2]
[379137695,1755155505135,-460.0,0.00018459,2]
[379137696,1755155505144,-552.41,0.00018459,2]
[379137697,1755155505153,-460.0,0.00018459,2]
[379137698,1755155505163,-460.0,0.00018459,2]
[379137699,1755155505172,-639.23,0.00018459,2]
[379137700,1755155505182,-460.0,0.00018459,2]
[379137701,1755155505194,-1070.12,0.00018459,2]
[379137702,1755155505204,-460.0,0.00018459,2]
[379137703,1755155505213,-460.0,0.00018459,2]
[379137704,1755155505222,-460.0,0.00018459,2]
[379137705,1755155505233,-460.0,0.00018459,2]
[379137706,1755155505242,-182.12615106,0.00018459,2]
[379137707,1755155505253,-460.0,0.00018459,2]
[379137708,1755155505263,-460.0,0.00018459,2]
[379137709,1755155505273,-460.0,0.00018459,2]
[379137710,1755155505282,-151.0,0.00018459,2]
[379137711,1755155505291,-151.0,0.00018459,2]
[379137712,1755155505300,-151.0,0.00018459,2]
[379137713,1755155505310,-460.0,0.00018459,2]
[379137714,1755155505320,-151.0,0.00018459,2]
[379137715,1755155505329,-460.0,0.00018459,2]
[379137716,1755155505338,-460.0,0.00018459,2]
[379137717,1755155505350,-460.0,0.00018459,2]
[379137718,1755155505359,-151.0,0.00018462,2]
[379137719,1755155505369,-151.0,0.00018463,2]
[379137720,1755155505378,-151.0,0.00018463,2]
[379137721,1755155505388,-416.81148,0.00018464,2]
[379137722,1755155505398,-416.81148,0.00018464,2]
[379137723,1755155505407,-261.60064091,0.00018473,2]
[379137724,1755155505417,-500.0,0.00018473,2]
[379137725,1755155505426,-501.83633287,0.00018473,2]
[379137726,1755155505436,-500.0,0.00018473,2]
[379137727,1755155505447,-500.76607249,0.00018473,2]
[379137728,1755155505455,-411.28228242,0.00018473,2]
[379137729,1755155505465,-151.0,0.00018473,2]
[379137730,1755155505474,-499.0,0.00018475,2]
[379137731,1755155505483,-200.0,0.00018539,20]
[379137732,1755155505492,-200.0,0.00018539,20]
[379137733,1755155505501,-200.0,0.00018539,20]
[379137734,1755155505511,-200.0,0.00018539,20]
[379137735,1755155505520,-200.0,0.00018539,20]
[379137736,1755155505529,-200.0,0.00018539,20]
[379137737,1755155505539,-157.65818684,0.00018631,2]
[379137738,1755155505548,-636.0,0.00018699,2]
[379137739,1755155505558,-972.0,0.00018699,2]
[379137740,1755155505567,-2151.0,0.00018699,2]
[379137741,1755155505576,-408.0,0.00018699,2]
[379137742,1755155505585,-537.3,0.00018722,2]
[379137743,1755155505595,-962.42,0.00018722,2]
[379137744,1755155505604,-3717.24,0.00018722,2]
[379137745,1755155505613,-1847.26,0.00018722,2]
[379137746,1755155505622,-3165.01,0.00018722,2]
[379137747,1755155505632,-658.62,0.00018722,2]
[379137748,1755155505641,-460.0,0.00018722,2]
[379137749,1755155505651,-901.56,0.00018722,2]
[379137750,1755155505660,-460.0,0.00018722,2]
[379137751,1755155505669,-2353.97,0.00018722,2]
[379137752,1755155505678,-698.69,0.00018722,2]
[379137753,1755155505688,-546.79,0.00018722,2]
[379137754,1755155505699,-473.16,0.00018722,2]
[379137755,1755155505708,-518.07,0.00018722,2]
[379137756,1755155505717,-1020.86,0.00018722,2]
[379137757,1755155505726,-2691.97,0.00018722,2]
[379137758,1755155505736,-650.89,0.00018722,2]
[379137759,1755155505745,-460.0,0.00018722,2]
[379137760,1755155505754,-460.0,0.00018722,2]
[379137761,1755155505763,-460.0,0.00018722,2]
[379137762,1755155505773,-753.88,0.00018722,2]
[379137763,1755155505782,-1246.85,0.00018722,2]
[379137764,1755155505791,-624.47,0.00018722,2]
[379137765,1755155505800,-460.0,0.00018722,2]
[379137766,1755155505810,-460.0,0.00018722,2]
[379137767,1755155505819,-460.0,0.00018722,2]
[379137768,1755155505828,-4523.35,0.00018722,2]
[379137769,1755155505837,-684.24,0.00018722,2]
[379137770,1755155505847,-2908.35,0.00018722,2]
[379137771,1755155505856,-460.0,0.00018722,2]
[379137772,1755155505866,-935.09,0.00018722,2]
[379137773,1755155505875,-460.0,0.00018722,2]
[379137774,1755155505885,-460.0,0.00018722,2]
[379137775,1755155505895,-527.87,0.00018722,2]
[379137776,1755155505904,-1312.88,0.00018722,2]
[379137777,1755155505913,-460.0,0.00018723,2]
[379137778,1755155505923,-460.0,0.00018723,2]
[379137779,1755155505932,-1589.06,0.00018723,2]
[379137780,1755155505941,-554.53,0.00018723,2]
[379137781,1755155505951,-460.0,0.00018723,2]
[379137782,1755155505960,-460.0,0.00018723,2]
[379137783,1755155505970,-460.0,0.00018723,2]
[379137784,1755155505979,-460.0,0.00018723,2]
[379137785,1755155505988,-671.78,0.00018723,2]
[379137786,1755155505998,-460.0,0.00018723,2]
[379137787,1755155506007,-460.0,0.00018723,2]
[379137788,1755155506017,-151.0,0.00018723,2]
[379137789,1755155506026,-151.0,0.00018723,2]
[379137790,1755155506035,-868.63,0.00018723,2]
[379137791,1755155506044,-1158.5,0.00018723,2]
[379137792,1755155506053,-460.0,0.00018723,2]
[379137793,1755155506062,-857.42,0.00018723,2]
[379137794,1755155506072,-460.0,0.00018723,2]
[379137795,1755155506081,-460.0,0.00018723,2]
[379137796,1755155506091,-1894.56,0.00018723,2]
[379137797,1755155506100,-1346.19,0.00018723,2]
[379137798,1755155506110,-1301.0,0.00018723,2]
[379137799,1755155506120,-460.0,0.00018723,2]
[379137800,1755155506129,-460.0,0.00018723,2]
[379137801,1755155506139,-460.0,0.00018723,2]
[379137802,1755155506148,-1394.89,0.00018723,2]
[379137803,1755155506157,-981.34,0.00018723,2]